fUSD/lending_fUSD_20250530
["ID","MTS","AMOUNT","RATE_DAILY","PERIOD"]
[363119880,1748589053858,-372.99160441,0.00022191,2]
[363119881,1748589053867,-460.73,0.00022191,2]
[363119882,1748589053876,-1352.22,0.00022191,2]
[363119883,1748589053885,-420.0,0.00022191,2]
[363119884,1748589053894,-420.0,0.00022191,2]
[363119885,1748589053903,-420.0,0.00022191,2]
[363119886,1748589053912,-1259.25,0.00022191,2]
[363119887,1748589053921,-420.0,0.00022191,2]
[363119888,1748589053930,-151.0,0.00022191,7]
[363119889,1748589053939,-700.81,0.00022191,2]
[363119890,1748589053948,-151.0,0.00022191,7]
[363119891,1748589053957,-151.0,0.00022191,7]
[363119892,1748589053967,-687.72,0.00022191,2]
[363119893,1748589053979,-519.19,0.00022191,2]
[363119894,1748589053988,-501.85,0.00022191,2]
[363119895,1748589053997,-1511.7,0.00022191,2]
[363119896,1748589054006,-420.0,0.00022191,2]
[363119897,1748589054016,-420.0,0.00022191,2]
[363119898,1748589054025,-151.0,0.00022191,7]
[363119899,1748589054034,-422.95,0.00022191,2]
[363119900,1748589054043,-151.0,0.00022191,7]
[363119901,1748589054052,-151.0,0.00022191,7]
[363119902,1748589054062,-2339.27,0.00022191,2]
[363119903,1748589054072,-420.0,0.00022191,2]
[363119904,1748589054081,-990.92,0.00022191,2]
[363119905,1748589054090,-420.0,0.00022191,2]
[363119906,1748589054099,-1609.43,0.00022191,2]
[363119907,1748589054108,-278.67,0.00022191,2]
[363119908,1748589054117,-1258.45,0.00022191,2]
[363119909,1748589054127,-575.1,0.00022191,2]
[363119910,1748589054136,-626.97,0.00022191,2]
[363119911,1748589054145,-420.0,0.00022191,2]
[363119912,1748589054154,-151.0,0.00022191,7]
[363119913,1748589054164,-420.0,0.00022191,2]
[363119914,1748589054173,-151.0,0.00022191,7]
[363119915,1748589054182,-193.014553,0.00022191,7]
[363119916,1748589054192,-420.0,0.00022191,2]
[363119917,1748589054202,-420.0,0.00022191,2]
[363119918,1748589054214,-534.63415168,0.00022191,2]
[363119919,1748589054224,-953.03,0.00022191,2]
[363119920,1748589054233,-560.79,0.00022191,2]
[363119921,1748589054243,-553.58,0.00022191,2]
[363119922,1748589054252,-1598.41,0.00022191,2]
[363119923,1748589054262,-1047.09,0.00022191,2]
[363119924,1748589054271,-420.0,0.00022191,2]
[363119925,1748589054280,-151.0,0.00022191,7]
[363119926,1748589054290,-420.0,0.00022191,2]
[363119927,1748589054299,-420.0,0.00022191,2]
[363119928,1748589054308,-420.0,0.00022191,2]
[363119929,1748589054317,-613.74,0.00022191,2]
[363119930,1748589054327,-420.0,0.00022191,2]
[363119931,1748589054336,-420.0,0.00022191,2]
[363119932,1748589054346,-420.0,0.00022191,2]
[363119933,1748589054356,-420.0,0.00022191,2]
[363119934,1748589054365,-593.03,0.00022191,2]
[363119935,1748589054378,-420.0,0.00022191,2]
[363119936,1748589054386,-300.0,0.00022191,2]
[363119937,1748589054395,-420.0,0.00022191,2]
[363119938,1748589054404,-814.3,0.00022191,2]
[363119939,1748589054413,-420.0,0.00022191,2]
[363119940,1748589054422,-420.0,0.00022191,2]
[363119941,1748589054430,-420.0,0.00022191,2]
[363119942,1748589054439,-1425.23,0.00022191,2]
[363119943,1748589054449,-388.97871371,0.00022191,2]
[363119944,1748589054459,-566.77051203,0.00022191,2]
[363119945,1748589054469,-420.0,0.00022191,2]
[363119946,1748589054480,-720.82,0.00022191,2]
[363119947,1748589054489,-857.66,0.00022191,2]
[363119948,1748589054499,-684.11,0.00022191,2]
[363119949,1748589054509,-710.88,0.00022191,2]
[363119950,1748589054518,-425.68,0.00022191,2]
[363119951,1748589054528,-151.0,0.00022191,7]
[363119952,1748589054538,-420.0,0.00022191,2]
[363119953,1748589054547,-151.0,0.00022191,7]
[363119954,1748589054557,-849.23,0.00022191,2]
[363119955,1748589054567,-151.0,0.00022191,7]
[363119956,1748589054578,-151.0,0.00022191,7]
[363119957,1748589054587,-1962.72,0.00022191,2]
[363119958,1748589054597,-420.0,0.00022191,2]
[363119959,1748589054607,-261.39364,0.00022191,7]
[363119960,1748589054616,-420.0,0.00022191,2]
[363119961,1748589054626,-420.0,0.00022191,2]
[363119962,1748589054636,-451.82,0.00022191,2]
[363119963,1748589054645,-420.0,0.00022191,2]
[363119964,1748589054655,-1199.27,0.00022191,2]
[363119965,1748589054664,-83.73152989,0.00022191,2]
[363119966,1748589055424,-336.26847011,0.00022191,2]
[363119967,1748589055434,-151.0,0.00022191,7]
[363119968,1748589055444,-151.0,0.00022191,7]
[363119969,1748589055456,-151.0,0.00022191,7]
[363119970,1748589055467,-450.18,0.00022191,2]
[363119971,1748589055478,-1183.36,0.00022191,2]
[363119972,1748589055489,-1631.11,0.00022191,2]
[363119973,1748589055499,-950.12,0.00022191,2]
[363119974,1748589055509,-420.0,0.00022191,2]
[363119975,1748589055519,-420.0,0.00022191,2]
[363119976,1748589055529,-711.43,0.00022191,2]
[363119977,1748589055539,-420.0,0.00022191,2]
[363119978,1748589055549,-583.14,0.00022191,2]
[363119979,1748589055559,-436.02588865,0.00022191,2]
[363119980,1748589055570,-1256.88,0.00022191,2]
[363119981,1748589055580,-420.0,0.00022191,2]
[363119982,1748589055591,-420.0,0.00022191,2]
[363119983,1748589055601,-420.0,0.00022191,2]
[363119984,1748589055611,-287.4640539,0.00022191,2]
[363119985,1748589055621,-591.8,0.00022191,2]
[363119986,1748589055631,-420.0,0.00022191,2]
[363119987,1748589055641,-420.0,0.00022191,2]
[363119988,1748589055651,-420.0,0.00022191,2]
[363119989,1748589055661,-420.0,0.00022191,2]
[363119990,1748589055670,-783.75,0.00022191,2]
[363119991,1748589055680,-799.96,0.00022191,2]
[363119992,1748589055690,-420.0,0.00022191,2]
[363119993,1748589055700,-808.08,0.00022191,2]
[363119994,1748589055710,-499.09,0.00022191,2]
[363119995,1748589055719,-493.42,0.00022191,2]
[363119996,1748589055731,-1974.4,0.00022191,2]
[363119997,1748589055741,-420.0,0.00022191,2]
[363119998,1748589055750,-420.0,0.00022191,2]
[363119999,1748589055761,-420.0,0.00022191,2]
[363120000,1748589055771,-420.0,0.00022191,2]
[363120001,1748589055782,-316.517081,0.00022191,7]
[363120002,1748589055792,-420.0,0.00022191,2]
[363120003,1748589055802,-316.517081,0.00022191,7]
[363120004,1748589055812,-316.517081,0.00022191,7]
[363120005,1748589055822,-316.517081,0.00022191,7]
[363120006,1748589055832,-636.43,0.00022191,2]
[363120007,1748589055842,-495.95,0.00022191,2]
[363120008,1748589055852,-420.0,0.00022191,2]
[363120009,1748589055862,-420.0,0.00022191,2]
[363120010,1748589055872,-316.517081,0.00022191,7]
[363120011,1748589055884,-316.517081,0.00022191,7]
[363120012,1748589055894,-316.517081,0.00022191,7]
[363120013,1748589055905,-316.517081,0.00022191,7]
[363120014,1748589055915,-151.0,0.00022191,7]
[363120015,1748589055925,-420.0,0.00022191,2]
[363120016,1748589055936,-420.0,0.00022191,2]
[363120017,1748589055947,-151.0,0.00022191,7]
[363120018,1748589055957,-151.0,0.00022191,7]
[363120019,1748589055968,-151.0,0.00022191,7]
[363120020,1748589055980,-151.0,0.00022191,7]
[363120021,1748589055990,-190.915516,0.00022191,7]
[363120022,1748589056000,-668.08,0.00022191,2]
[363120023,1748589056011,-600.44,0.00022191,2]
[363120024,1748589056253,-420.0,0.00022191,2]
[363120025,1748589056278,-420.0,0.00022191,2]
[363120026,1748589056288,-420.0,0.00022191,2]
[363120027,1748589056298,-184.24,0.00022191,2]
[363120028,1748589056307,-420.0,0.00022191,2]
[363120029,1748589056317,-780.72,0.00022191,2]
[363120030,1748589056328,-1339.1,0.00022191,2]
[363120031,1748589056337,-420.0,0.00022191,2]
[363120032,1748589056347,-420.0,0.00022191,2]
[363120033,1748589056357,-420.0,0.00022191,2]
[363120034,1748589056367,-1373.57,0.00022191,2]
[363120035,1748589056380,-420.0,0.00022191,2]
[363120036,1748589056390,-613.45,0.00022191,2]
[363120037,1748589056400,-420.0,0.00022191,2]
[363120038,1748589056411,-2679.84,0.00022191,2]
[363120039,1748589056420,-551.61,0.00022191,2]
[363120040,1748589056429,-420.0,0.00022191,2]
[363120041,1748589056440,-420.0,0.00022191,2]
[363120042,1748589056451,-475.59,0.00022191,2]
[363120043,1748589056461,-973.74,0.00022191,2]
[363120044,1748589056471,-420.0,0.00022191,2]
[363120045,1748589056482,-1969.05,0.00022191,2]
[363120046,1748589056492,-420.0,0.00022191,2]
[363120047,1748589056502,-897.2,0.00022191,2]
[363120048,1748589056511,-528.69,0.00022191,2]
[363120049,1748589056521,-420.0,0.00022191,2]
[363120050,1748589056530,-420.0,0.00022191,2]
[363120051,1748589056540,-903.46,0.00022191,2]
[363120052,1748589056550,-524.1,0.00022191,2]
[363120053,1748589056560,-1457.53,0.00022191,2]
[363120054,1748589056571,-939.07,0.00022191,2]
[363120055,1748589056580,-886.88,0.00022191,2]
[363120056,1748589056590,-774.05,0.00022191,2]
[363120057,1748589056599,-634.26,0.00022191,2]
[363120058,1748589056610,-420.0,0.00022191,2]
[363120059,1748589056620,-420.0,0.00022191,2]
[363120060,1748589056630,-420.0,0.00022191,2]
[363120061,1748589056640,-420.0,0.00022191,2]
[363120062,1748589056650,-1147.76,0.00022191,2]
[363120063,1748589056659,-420.0,0.00022191,2]
[363120064,1748589056669,-420.0,0.00022191,2]
[363120065,1748589056678,-646.67,0.00022191,2]
[363120066,1748589056688,-420.0,0.00022191,2]
[363120067,1748589056698,-1415.7,0.00022191,2]
[363120068,1748589056708,-474.47,0.00022191,2]
[363120069,1748589056718,-420.0,0.00022191,2]
[363120070,1748589056728,-1362.77,0.00022191,2]
[363120071,1748589056738,-467.4,0.00022191,2]
[363120072,1748589056748,-420.0,0.00022191,2]
[363120073,1748589056758,-2049.58,0.00022191,2]
[363120074,1748589056767,-509.23,0.00022191,2]
[363120075,1748589056777,-420.0,0.00022191,2]
[363120076,1748589056786,-151.0,0.00022191,7]
[363120077,1748589056796,-151.0,0.00022191,7]
[363120078,1748589056806,-528.45,0.00022191,2]
[363120079,1748589056815,-154.786599,0.00022191,7]
[363120080,1748589056825,-1342.53,0.00022191,2]
[363120081,1748589056835,-420.0,0.00022191,2]
[363120082,1748589056845,-420.0,0.00022191,2]
[363120083,1748589056855,-425.59,0.00022191,2]
[363120084,1748589056864,-420.0,0.00022191,2]
[363120085,1748589056874,-420.0,0.00022191,2]
[363120086,1748589056883,-1744.79,0.00022191,2]
[363120087,1748589056893,-420.0,0.00022191,2]
[363120088,1748589056903,-420.0,0.00022191,2]
[363120089,1748589056912,-719.63,0.00022191,2]
[363120090,1748589056922,-420.0,0.00022191,2]
[363120091,1748589056931,-2496.56,0.00022191,2]
[363120092,1748589056940,-574.93,0.00022191,2]
[363120093,1748589056950,-420.0,0.00022191,2]
[363120094,1748589056959,-420.0,0.00022191,2]
[363120095,1748589056969,-420.0,0.00022191,2]
[363120096,1748589056981,-434.44,0.00022191,2]
[363120097,1748589056991,-1196.96,0.00022191,2]
[363120098,1748589057001,-619.08,0.00022191,2]
[363120099,1748589057011,-1004.7,0.00022191,2]
[363120100,1748589057020,-420.0,0.00022191,2]
[363120101,1748589057030,-420.0,0.00022191,2]
[363120102,1748589057040,-580.27,0.00022191,2]
[363120103,1748589057049,-420.0,0.00022191,2]
[363120104,1748589057059,-601.19,0.00022191,2]
[363120105,1748589057068,-500.0,0.00022191,2]
[363120106,1748589057078,-703.73,0.00022191,2]
[363120107,1748589057087,-420.0,0.00022191,2]
[363120108,1748589057097,-279.04,0.00022191,2]
[363120109,1748589057107,-414.63725396,0.00022191,2]
[363120110,1748589057116,-151.0,0.00022191,7]
[363120111,1748589057126,-205.739083,0.00022191,7]
[363120112,1748589057135,-1231.17,0.00022191,2]
[363120113,1748589057145,-640.78,0.00022191,2]
[363120114,1748589057155,-420.0,0.00022191,2]
[363120115,1748589057164,-420.0,0.00022191,2]
[363120116,1748589057174,-420.0,0.00022191,2]
[363120117,1748589057183,-420.0,0.00022191,2]
[363120118,1748589057193,-420.0,0.00022191,2]
[363120119,1748589057203,-420.0,0.00022191,2]
[363120120,1748589057212,-420.0,0.00022191,2]
[363120121,1748589057222,-420.0,0.00022191,2]
[363120122,1748589057233,-1619.08,0.00022191,2]
[363120123,1748589057243,-420.0,0.00022191,2]
[363120124,1748589057252,-420.0,0.00022191,2]
[363120125,1748589057261,-500.68,0.00022191,2]
[363120126,1748589057271,-599.26,0.00022191,2]
[363120127,1748589057280,-420.0,0.00022191,2]
[363120128,1748589057290,-622.06,0.00022191,2]
[363120129,1748589057299,-420.0,0.00022191,2]
[363120130,1748589057309,-420.0,0.00022191,2]
[363120131,1748589057318,-420.0,0.00022191,2]
[363120132,1748589057328,-566.42753267,0.00022191,2]
[363120133,1748589057338,-833.18,0.00022191,2]
[363120134,1748589057348,-420.0,0.00022191,2]
[363120135,1748589057357,-500.0,0.00022191,2]
[363120136,1748589057368,-420.0,0.00022191,2]
[363120137,1748589057383,-420.0,0.00022191,2]
[363120138,1748589057393,-420.0,0.00022191,2]
[363120139,1748589057403,-420.0,0.00022191,2]
[363120140,1748589057413,-420.0,0.00022191,2]
[363120141,1748589057423,-226.84,0.00022191,2]
[363120142,1748589057433,-767.86,0.00022191,2]
[363120143,1748589057443,-420.0,0.00022191,2]
[363120144,1748589057453,-500.0,0.00022191,2]
[363120145,1748589057463,-533.09,0.00022191,2]
[363120146,1748589057473,-1386.92,0.00022191,2]
[363120147,1748589057484,-1139.47,0.00022191,2]
[363120148,1748589057493,-192.42654376,0.00022191,2]
[363120149,1748589057503,-420.0,0.00022191,2]
[363120150,1748589057513,-420.0,0.00022191,2]
[363120151,1748589057523,-468.42,0.00022191,2]
[363120152,1748589057532,-500.0,0.00022191,2]
[363120153,1748589057542,-1245.49,0.00022191,2]
[363120154,1748589057551,-1083.99,0.00022191,2]
[363120155,1748589057561,-1354.72,0.00022191,2]
[363120156,1748589057571,-1295.22,0.00022191,2]
[363120157,1748589057580,-500.0,0.00022191,2]
[363120158,1748589057589,-420.0,0.00022191,2]
[363120159,1748589057599,-420.0,0.00022191,2]
[363120160,1748589057608,-420.0,0.00022191,2]
[363120161,1748589057617,-618.37,0.00022191,2]
[363120162,1748589057627,-505.98,0.00022191,2]
[363120163,1748589057636,-1588.72,0.00022191,2]
[363120164,1748589057645,-420.0,0.00022191,2]
[363120165,1748589057654,-560.2,0.00022191,2]
[363120166,1748589057663,-420.0,0.00022191,2]
[363120167,1748589057672,-420.0,0.00022191,2]
[363120168,1748589057681,-420.0,0.00022191,2]
[363120169,1748589057690,-4488.96,0.00022191,2]
[363120170,1748589057699,-1084.87,0.00022191,2]
[363120171,1748589057709,-500.0,0.00022191,2]
[363120172,1748589057719,-420.0,0.00022191,2]
[363120173,1748589057730,-420.0,0.00022191,2]
[363120174,1748589057740,-485.31,0.00022191,2]
[363120175,1748589057749,-420.0,0.00022191,2]
[363120176,1748589057759,-420.0,0.00022191,2]
[363120177,1748589057768,-460.38,0.00022191,2]
[363120178,1748589057778,-683.88,0.00022191,2]
[363120179,1748589057788,-420.0,0.00022191,2]
[363120180,1748589057797,-420.0,0.00022191,2]
[363120181,1748589057806,-2908.62,0.00022191,2]
[363120182,1748589057816,-420.0,0.00022191,2]
[363120183,1748589057827,-216.02245433,0.00022191,2]
[363120184,1748589057836,-420.0,0.00022191,2]
[363120185,1748589057846,-420.0,0.00022191,2]
[363120186,1748589057856,-420.0,0.00022191,2]
[363120187,1748589057865,-582.96,0.00022191,2]
[363120188,1748589057875,-420.0,0.00022191,2]
[363120189,1748589057885,-1178.55,0.00022191,2]
[363120190,1748589057895,-180.62,0.00022191,2]
[363120191,1748589057904,-151.0,0.00022191,7]
[363120192,1748589057915,-420.0,0.00022191,2]
[363120193,1748589057924,-151.0,0.00022191,7]
[363120194,1748589057934,-420.0,0.00022191,2]
[363120195,1748589057943,-151.0,0.00022191,7]
[363120196,1748589057953,-6061.43,0.00022191,2]
[363120197,1748589057963,-420.0,0.00022191,2]
[363120198,1748589057972,-475.62,0.00022191,2]
[363120199,1748589057984,-708.45,0.00022191,2]
[363120200,1748589057994,-3457.91,0.00022191,2]
[363120201,1748589058004,-725.9,0.00022191,2]
[363120202,1748589058014,-151.0,0.00022191,7]
[363120203,1748589058023,-420.0,0.00022191,2]
[363120204,1748589058033,-151.0,0.00022191,7]
[363120205,1748589058043,-151.0,0.00022191,7]
[363120206,1748589058052,-420.0,0.00022191,2]
[363120207,1748589058062,-420.0,0.00022191,2]
[363120208,1748589058071,-420.0,0.00022191,2]
[363120209,1748589058080,-420.0,0.00022191,2]
[363120210,1748589058090,-557.36,0.00022191,2]
[363120211,1748589058100,-1151.3,0.00022191,2]
[363120212,1748589058109,-420.0,0.00022191,2]
[363120213,1748589058119,-420.0,0.00022191,2]
[363120214,1748589058129,-420.0,0.00022191,2]
[363120215,1748589058139,-361.68224759,0.00022191,2]
[363120216,1748589058148,-630.57,0.00022191,2]
[363120217,1748589058158,-420.0,0.00022191,2]
[363120218,1748589058168,-10961.74,0.00022191,2]
[363120219,1748589058178,-499.4,0.00022191,2]
[363120220,1748589058188,-500.0,0.00022191,2]
[363120221,1748589058198,-218.27,0.00022191,2]
[363120222,1748589058207,-557.85,0.00022191,2]
[363120223,1748589058217,-420.0,0.00022191,2]
[363120224,1748589058228,-3268.18,0.00022191,2]
[363120225,1748589058237,-2495.02,0.00022191,2]
[363120226,1748589058247,-470.07,0.00022191,2]
[363120227,1748589058256,-420.0,0.00022191,2]
[363120228,1748589058266,-500.0,0.00022191,2]
[363120229,1748589058275,-151.0,0.00022191,7]
[363120230,1748589058285,-420.0,0.00022191,2]
[363120231,1748589058295,-151.0,0.00022191,7]
[363120232,1748589058305,-508.79826855,0.00022191,2]
[363120233,1748589058315,-544.36,0.00022191,2]
[363120234,1748589058324,-151.0,0.00022191,7]
[363120235,1748589058334,-188.37339197,0.00022191,2]
[363120236,1748589058343,-5330.97,0.00022191,2]
[363120237,1748589058353,-511.97950367,0.00022191,2]
[363120238,1748589058363,-1053.28,0.00022191,2]
[363120239,1748589058377,-521.59,0.00022191,2]
[363120240,1748589058387,-420.0,0.00022191,2]
[363120241,1748589058397,-420.0,0.00022191,2]
[363120242,1748589058406,-630.87,0.00022191,2]
[363120243,1748589058418,-1126.85,0.00022191,2]
[363120244,1748589058428,-420.0,0.00022191,2]
[363120245,1748589058437,-420.0,0.00022191,2]
[363120246,1748589058447,-420.0,0.00022191,2]
[363120247,1748589058458,-420.0,0.00022191,2]
[363120248,1748589058467,-538.45,0.00022191,2]
[363120249,1748589058477,-420.0,0.00022191,2]
[363120250,1748589058486,-420.0,0.00022191,2]
[363120251,1748589058496,-421.78,0.00022191,2]
[363120252,1748589058506,-420.0,0.00022191,2]
[363120253,1748589058515,-1365.63,0.00022191,2]
[363120254,1748589058525,-420.0,0.00022191,2]
[363120255,1748589058535,-420.0,0.00022191,2]
[363120256,1748589058544,-1158.13,0.00022191,2]
[363120257,1748589058554,-420.0,0.00022191,2]
[363120258,1748589058563,-1562.02,0.00022191,2]
[363120259,1748589058573,-420.0,0.00022191,2]
[363120260,1748589058583,-1735.831052,0.00022191,2]
[363120261,1748589058592,-613.75,0.00022191,2]
[363120262,1748589058601,-992.76,0.00022191,2]
[363120263,1748589058611,-12019.32,0.00022191,2]
[363120264,1748589058620,-646.81,0.00022191,2]
[363120265,1748589058630,-420.0,0.00022191,2]
[363120266,1748589058640,-1389.953065,0.00022191,2]
[363120267,1748589058664,-126.493695,0.00022191,2]
[363120268,1748589058674,-930.506305,0.00022191,2]
[363120269,1748589058748,-146.333695,0.00022191,2]
[363120270,1748589058757,-420.0,0.00022191,2]
[363120271,1748589058767,-671.17,0.00022191,2]
[363120272,1748589058776,-420.0,0.00022191,2]
[363120273,1748589058786,-430.911955,0.00022191,2]
[363120274,1748589059158,-230356.35740344,0.00021917,2]
[363120275,1748589059172,-4684.02512666,0.00021917,2]
[363120276,1748589059829,-271.2209363,0.000219,2]
[363120277,1748589059839,-312872.38299952,0.00021917,2]
[363120278,1748589060908,-481112.96765521,0.00021917,2]
[363120279,1748589060923,-26935.44892539,0.00021917,2]
[363120280,1748589060938,-53778.56870347,0.00021917,2]
[363120281,1748589060952,-111227.1184,0.00021917,2]
[363120282,1748589060967,-46758.55,0.00021917,2]
[363120283,1748589060988,-29094.23954007,0.00021917,2]
[363120284,1748589061050,-629.49807175,0.00021917,2]
[363120285,1748589061062,-17203.3,0.00021917,2]
[363120290,1748589086090,407.0,0.000176,5]
[363120320,1748590012135,-300.0,0.00019999,2]
[363120321,1748590012159,-3422.83256146,0.0002,2]
[363120324,1748590027223,10000.0,0.0002,10]
[363120325,1748590036523,1416.77321668,0.0002,5]
[363120327,1748590085381,179.93,0.00013699,2]
[363120342,1748590195557,1017.21,0.00018622,2]
[363120353,1748590232631,-187.98,0.0001999,3]
[363120354,1748590232642,-250.0,0.00019995,2]
[363120355,1748590232651,-1200.0,0.00019999,2]
[363120356,1748590232661,-300.0,0.00019999,2]
[363120357,1748590232671,-537.0,0.00019999,2]
[363120358,1748590232680,-200.0,0.0002,2]
[363120359,1748590232690,-3085.16896224,0.0002,2]
[363120360,1748590232707,-106728.15468296,0.0002,2]
[363120361,1748590232717,-62386.06531704,0.0002,2]
[363120362,1748590232738,-22358.10298785,0.0002,2]
[363120363,1748590232751,-214.0,0.00020173,2]
[363120364,1748590232761,-179.93,0.00020187,2]
[363120365,1748590232771,-200.0,0.00020538,2]
[363120366,1748590232782,-1500.0,0.00020588,2]
[363120367,1748590232793,-514.23,0.00020618,2]
[363120368,1748590232803,-250.0,0.0002083,2]
[363120369,1748590232813,-178.71794524,0.00020855,2]
[363120370,1748590232823,-317.61,0.00020881,2]
[363120371,1748590232836,-1017.21,0.00020886,2]
[363120372,1748590232846,-150.0,0.00020955,7]
[363120373,1748590232855,-501.21487737,0.00021,5]
[363120374,1748590232864,-167.03,0.00021008,2]
[363120375,1748590232874,-238.62806482,0.00021008,2]
[363120376,1748590232884,-1000.0,0.00021022,2]
[363120377,1748590232894,-150.0,0.00021278,2]
[363120378,1748590232904,-170.34,0.0002137,2]
[363120379,1748590232913,-170.34,0.0002137,2]
[363120380,1748590232923,-299.52,0.00021378,2]
[363120381,1748590232932,-376.56,0.000215,2]
[363120382,1748590232942,-907.82,0.000215,2]
[363120383,1748590232952,-163.04,0.00021534,2]
[363120384,1748590232961,-46404.06141761,0.00021572,2]
[363120385,1748590232975,-164.87095862,0.00021608,2]
[363120386,1748590232985,-503.0,0.00021699,2]
[363120387,1748590232994,-1266.037616,0.00021747,3]
[363120388,1748590233004,-177.6,0.00021757,2]
[363120389,1748590233013,-579.50301406,0.00021776,2]
[363120390,1748590233023,-420.0,0.00021777,2]
[363120391,1748590233033,-207.4,0.00021804,2]
[363120392,1748590233044,-3713.04559888,0.00021816,2]
[363120393,1748590233054,-463.9829,0.00021817,2]
[363120394,1748590233064,-6303.2233,0.00021817,2]
[363120395,1748590233074,-1000.0,0.00021817,2]
[363120396,1748590233084,-174.9952,0.00021817,2]
[363120397,1748590233095,-5000.0,0.00021817,2]
[363120398,1748590233107,-482.32388357,0.00021817,2]
[363120399,1748590233117,-163.7738703,0.00021817,2]
[363120400,1748590233127,-4898.26742534,0.00021817,2]
[363120401,1748590233136,-3250.71,0.00021863,14]
[363120402,1748590233147,-3713.04559884,0.00021873,2]
[363120403,1748590233157,-1680.0,0.00021881,2]
[363120404,1748590233166,-448415.30376361,0.000219,2]
[363120405,1748590233178,-5085.13443448,0.000219,2]
[363120406,1748590233202,-7719.29338366,0.000219,2]
[363120407,1748590233213,-682.755425,0.000219,2]
[363120408,1748590233230,-3222.14121635,0.000219,2]
[363120409,1748590233259,-425.18333004,0.000219,2]
[363120410,1748590233271,-16783.66364517,0.000219,2]
[363120411,1748590233283,-598.88591085,0.000219,2]
[363120433,1748590238331,-527.95,0.00021872,2]
[363120434,1748590238429,-295.83496085,0.00021872,2]
[363120435,1748590238440,-3169.8160848,0.00021872,2]
[363120436,1748590238451,-904.66637967,0.00021872,2]
[363120437,1748590238461,-12838.73229473,0.000219,2]
[363120438,1748590238472,-1096.60987518,0.000219,2]
[363120439,1748590238486,-134568.06421371,0.000219,2]
[363120440,1748590238495,-257.6598896,0.000219,2]
[363120441,1748590238504,-257.65988948,0.000219,2]
[363120442,1748590238513,-257.65988948,0.000219,2]
[363120443,1748590238523,-257.65988948,0.000219,2]
[363120444,1748590238532,-257.65988948,0.000219,2]
[363120445,1748590238541,-257.65988948,0.000219,2]
[363120446,1748590238550,-257.65988948,0.000219,2]
[363120447,1748590238559,-257.65988948,0.000219,2]
[363120448,1748590238569,-257.65988948,0.000219,2]
[363120449,1748590238578,-257.65988948,0.000219,2]
[363120450,1748590238588,-257.65988948,0.000219,2]
[363120451,1748590238598,-257.65988948,0.000219,2]
[363120452,1748590238608,-257.65988948,0.000219,2]
[363120453,1748590238619,-257.65988948,0.000219,2]
[363120454,1748590238629,-257.65988948,0.000219,2]
[363120455,1748590238638,-257.65988948,0.000219,2]
[363120456,1748590238647,-151.0,0.00021904,2]
[363120457,1748590238657,-156.0,0.00021904,2]
[363120459,1748590238667,-1115.157653,0.00021904,2]
[363120462,1748590238677,-151.0,0.00021904,2]
[363120463,1748590238686,-151.0,0.00021904,2]